{"text_format":"1","workbook":"xlsx","n_sheets":2,"sheets":["СВХ","отчет"],"not_rendered":{"charts":0,"images":0,"macros":1,"external_links":1,"defined_names":8,"comments":0,"pivot_tables":0},"unopened":[],"bounds":{"document_bytes":16777216,"sheet_cells":100000,"rows_first":2000,"rows_last":500,"rows_between":2000,"halvings":0,"cell_chars":16384,"cell_head_chars":4096},"cells_cut":0,"cells_raw":0,"read":"whole","date_system":"1900"}

{"sheet":"СВХ","index":0,"n_rows":303,"n_cols":54,"rows_kept":303,"cut":false,"hidden":false,"merged":[[0,30,2,32],[1,10,2,10],[1,11,2,11],[0,10,0,11],[0,23,2,23],[0,5,2,5],[0,22,2,22],[0,12,2,12],[0,6,2,6],[0,7,2,7],[1,8,2,8],[1,9,2,9],[0,8,0,9],[0,0,2,0],[0,1,2,1],[0,2,2,2],[0,4,2,4],[0,3,2,3],[0,28,2,29],[0,26,2,26],[0,27,2,27],[0,24,2,24],[1,18,2,18],[1,19,2,19],[0,13,0,21],[1,20,2,20],[1,21,2,21],[1,13,2,13],[1,14,2,14],[1,15,2,15],[1,16,2,16],[1,17,2,17],[0,25,2,25]]}
["№","Дата прибытия","Дата убытия (ручн.)","Текущая дата (автом.)","описание","описание","описание","описание","описание",null,"описание",null,"описание","описание",null,null,null,null,null,null,null,null,"описание","описание","описание","описание","описание","описание"]
[null,null,null,null,null,null,null,null,"описание","описание","описание","описание",null,"описание","описание","описание","описание","описание","описание","описание","описание","описание"]
[]
[1,null,null,{"$f":"NOW()","v":"2015-02-02T14:25:47.240"},null,null,null,null,null,null,null,null,null,null,null,null,null,{"$f":"#REF!*E4*G4","v":{"$error":"#REF!"}}]
[2,"2013-12-19","2014-02-02",{"$f":"NOW()","v":"2015-02-02T14:25:47.240"},{"$f":"IF(C5>0,INT(C5-B5)+1,INT(D5-B5)+1)","v":46},null,1,null,null,null,null,null,null,null,null,null,null,null,null,null,null,null,null,null,null,{"$f":"SUM(I5:Y5)","v":0},null,{"$f":"IF(AA5>0,Z5*(1-AA5))","v":false},null,null,null,null,null,null,null,null,null,null,null,null,null,null,null,null,null,null,null,null,null,"Автопогрузчик",null,null,null,"Налич."]
[3,"2013-12-20","2014-03-03","2015-02-02T14:25:47.240",74,null,1,null,null,null,null,null,null,null,null,null,null,null,null,null,null,null,null,null,null,{"$f":"SUM(I6:Y6)","v":0},null,{"$f":"IF(AA6>0,Z6*(1-AA6))","v":false},null,null,null,null,null,null,null,null,null,null,null,null,null,null,null,null,null,null,null,null,null,"АвтоКран"]
[4,"2013-12-21","2014-04-04","2015-02-02T14:25:47.240",105,null,1,null,null,null,null,null,null,null,null,null,null,null,null,null,null,null,null,null,null,0,null,false,null,null,null,null,null,null,null,null,null,null,null,null,null,null,null,null,null,null,null,null,null,"хран. 1 паллет",null,null,null,"Переч."]
[5,"2013-12-22","2014-05-05","2015-02-02T14:25:47.240",135,null,1,null,null,null,null,null,null,null,null,null,null,null,null,null,null,null,null,null,null,0,null,false,null,null,null,null,null,null,null,null,null,null,null,null,null,null,null,null,null,null,null,null,null,"Автокран 1 место"]
[6,"2013-12-23","2014-06-06","2015-02-02T14:25:47.240",166,null,1,null,null,null,null,null,null,null,null,null,null,null,null,null,null,null,null,null,null,0,null,false,null,null,null,null,null,null,null,null,null,null,null,null,null,null,null,null,null,null,null,null,null,"Охрана груз авто"]
[7,"2014-12-19",null,"2015-02-02T14:25:47.240",46,null,null,null,null,null,null,null,null,null,null,null,null,null,null,null,null,null,null,null,null,0,null,false,null,null,null,null,null,null,null,null,null,null,null,null,null,null,null,null,null,null,null,null,null,"Охрана в груз конт"]
[8,null,null,"2015-02-02T14:25:47.240",42038,null,null,null,null,null,null,null,null,null,null,null,null,null,null,null,null,null,null,null,null,0,null,false,null,null,null,null,null,null,null,null,null,null,null,null,null,null,null,null,null,null,null,null,null,"Охрана товаров"]
[9,null,null,"2015-02-02T14:25:47.240",42038,null,null,null,null,null,null,null,null,null,null,null,null,null,null,null,null,null,null,null,null,0,null,false,null,null,null,null,null,null,null,null,null,null,null,null,null,null,null,null,null,null,null,null,null,"Охрана тяж техники"]
[10,null,null,"2015-02-02T14:25:47.240",42038,null,null,null,null,null,null,null,null,null,null,null,null,null,null,null,null,null,null,null,null,0,null,false,null,null,null,null,null,null,null,null,null,null,null,null,null,null,null,null,null,null,null,null,null,"Охрана легк авто"]
[11,null,null,"2015-02-02T14:25:47.240",42038,null,null,null,null,null,null,null,null,null,null,null,null,null,null,null,null,null,null,null,null,0,null,false,null,null,null,null,null,null,null,null,null,null,null,null,null,null,null,null,null,null,null,null,null,"Использование жд тупика"]
[12,null,null,"2015-02-02T14:25:47.240",42038,null,null,null,null,null,null,null,null,null,null,null,null,null,null,null,null,null,null,null,null,0,null,false,null,null,null,null,null,null,null,null,null,null,null,null,null,null,null,null,null,null,null,null,null,"Пакетирование"]
[13,null,null,"2015-02-02T14:25:47.240",42038,null,null,null,null,null,null,null,null,null,null,null,null,null,null,null,null,null,null,null,null,0,null,false,null,null,null,null,null,null,null,null,null,null,null,null,null,null,null,null,null,null,null,null,null,"Охрана жд вагона"]
[14,null,null,"2015-02-02T14:25:47.240",42038,null,null,null,null,null,null,null,null,null,null,null,null,null,null,null,null,null,null,null,null,0,null,false]
[15,null,null,"2015-02-02T14:25:47.240",42038,null,null,null,null,null,null,null,null,null,null,null,null,null,null,null,null,null,null,null,null,0,null,false]
[16,null,null,"2015-02-02T14:25:47.240",42038,null,null,null,null,null,null,null,null,null,null,null,null,null,null,null,null,null,null,null,null,0,null,false]
[17,null,null,"2015-02-02T14:25:47.240",42038,null,null,null,null,null,null,null,null,null,null,null,null,null,null,null,null,null,null,null,null,0,null,false]
[18,null,null,"2015-02-02T14:25:47.240",42038,null,null,null,null,null,null,null,null,null,null,null,null,null,null,null,null,null,null,null,null,0,null,false]
[19,null,null,"2015-02-02T14:25:47.240",42038,null,null,null,null,null,null,null,null,null,null,null,null,null,null,null,null,null,null,null,null,0,null,false]
[20,null,null,"2015-02-02T14:25:47.240",42038,null,null,null,null,null,null,null,null,null,null,null,null,null,null,null,null,null,null,null,null,0,null,false]
[21,null,null,"2015-02-02T14:25:47.240",42038,null,null,null,null,null,null,null,null,null,null,null,null,null,null,null,null,null,null,null,null,0,null,false]
[22,null,null,"2015-02-02T14:25:47.240",42038,null,null,null,null,null,null,null,null,null,null,null,null,null,null,null,null,null,null,null,null,0,null,false]
[23,null,null,"2015-02-02T14:25:47.240",42038,null,null,null,null,null,null,null,null,null,null,null,null,null,null,null,null,null,null,null,null,0,null,false]
[24,null,null,"2015-02-02T14:25:47.240",42038,null,null,null,null,null,null,null,null,null,null,null,null,null,null,null,null,null,null,null,null,0,null,false]
[25,null,null,"2015-02-02T14:25:47.240",42038,null,null,null,null,null,null,null,null,null,null,null,null,null,null,null,null,null,null,null,null,0,null,false]
[26,null,null,"2015-02-02T14:25:47.240",42038,null,null,null,null,null,null,null,null,null,null,null,null,null,null,null,null,null,null,null,null,0,null,false]
[27,null,null,"2015-02-02T14:25:47.240",42038,null,null,null,null,null,null,null,null,null,null,null,null,null,null,null,null,null,null,null,null,0,null,false]
[28,null,null,"2015-02-02T14:25:47.240",42038,null,null,null,null,null,null,null,null,null,null,null,null,null,null,null,null,null,null,null,null,0,null,false]
[29,null,null,"2015-02-02T14:25:47.240",42038,null,null,null,null,null,null,null,null,null,null,null,null,null,null,null,null,null,null,null,null,0,null,false]
[30,null,null,"2015-02-02T14:25:47.240",42038,null,null,null,null,null,null,null,null,null,null,null,null,null,null,null,null,null,null,null,null,0,null,false]
[31,null,null,"2015-02-02T14:25:47.240",42038,null,null,null,null,null,null,null,null,null,null,null,null,null,null,null,null,null,null,null,null,0,null,false]
[32,null,null,"2015-02-02T14:25:47.240",42038,null,null,null,null,null,null,null,null,null,null,null,null,null,null,null,null,null,null,null,null,0,null,false]
[33,null,null,"2015-02-02T14:25:47.240",42038,null,null,null,null,null,null,null,null,null,null,null,null,null,null,null,null,null,null,null,null,0,null,false]
[34,null,null,"2015-02-02T14:25:47.240",42038,null,null,null,null,null,null,null,null,null,null,null,null,null,null,null,null,null,null,null,null,0,null,false]
[35,null,null,"2015-02-02T14:25:47.240",42038,null,null,null,null,null,null,null,null,null,null,null,null,null,null,null,null,null,null,null,null,0,null,false]
[36,null,null,"2015-02-02T14:25:47.240",42038,null,null,null,null,null,null,null,null,null,null,null,null,null,null,null,null,null,null,null,null,0,null,false]
[37,null,null,"2015-02-02T14:25:47.240",42038,null,null,null,null,null,null,null,null,null,null,null,null,null,null,null,null,null,null,null,null,0,null,false]
[38,null,null,"2015-02-02T14:25:47.240",42038,null,null,null,null,null,null,null,null,null,null,null,null,null,null,null,null,null,null,null,null,0,null,false]
[39,null,null,"2015-02-02T14:25:47.240",42038,null,null,null,null,null,null,null,null,null,null,null,null,null,null,null,null,null,null,null,null,0,null,false]
[40,null,null,"2015-02-02T14:25:47.240",42038,null,null,null,null,null,null,null,null,null,null,null,null,null,null,null,null,null,null,null,null,0,null,false]
[41,null,null,"2015-02-02T14:25:47.240",42038,null,null,null,null,null,null,null,null,null,null,null,null,null,null,null,null,null,null,null,null,0,null,false]
[42,null,null,"2015-02-02T14:25:47.240",42038,null,null,null,null,null,null,null,null,null,null,null,null,null,null,null,null,null,null,null,null,0,null,false]
[43,null,null,"2015-02-02T14:25:47.240",42038,null,null,null,null,null,null,null,null,null,null,null,null,null,null,null,null,null,null,null,null,0,null,false]
[44,null,null,"2015-02-02T14:25:47.240",42038,null,null,null,null,null,null,null,null,null,null,null,null,null,null,null,null,null,null,null,null,0,null,false]
[45,null,null,"2015-02-02T14:25:47.240",42038,null,null,null,null,null,null,null,null,null,null,null,null,null,null,null,null,null,null,null,null,0,null,false]
[46,null,null,"2015-02-02T14:25:47.240",42038,null,null,null,null,null,null,null,null,null,null,null,null,null,null,null,null,null,null,null,null,0,null,false]
[47,null,null,"2015-02-02T14:25:47.240",42038,null,null,null,null,null,null,null,null,null,null,null,null,null,null,null,null,null,null,null,null,0,null,false]
[48,null,null,"2015-02-02T14:25:47.240",42038,null,null,null,null,null,null,null,null,null,null,null,null,null,null,null,null,null,null,null,null,0,null,false]
[49,null,null,"2015-02-02T14:25:47.240",42038,null,null,null,null,null,null,null,null,null,null,null,null,null,null,null,null,null,null,null,null,0,null,false]
[50,null,null,"2015-02-02T14:25:47.240",42038,null,null,null,null,null,null,null,null,null,null,null,null,null,null,null,null,null,null,null,null,0,null,false]
[51,null,null,"2015-02-02T14:25:47.240",42038,null,null,null,null,null,null,null,null,null,null,null,null,null,null,null,null,null,null,null,null,0,null,false]
[52,null,null,"2015-02-02T14:25:47.240",42038,null,null,null,null,null,null,null,null,null,null,null,null,null,null,null,null,null,null,null,null,0,null,false]
[53,null,null,"2015-02-02T14:25:47.240",42038,null,null,null,null,null,null,null,null,null,null,null,null,null,null,null,null,null,null,null,null,0,null,false]
[54,null,null,"2015-02-02T14:25:47.240",42038,null,null,null,null,null,null,null,null,null,null,null,null,null,null,null,null,null,null,null,null,0,null,false]
[55,null,null,"2015-02-02T14:25:47.240",42038,null,null,null,null,null,null,null,null,null,null,null,null,null,null,null,null,null,null,null,null,0,null,false]
[56,null,null,"2015-02-02T14:25:47.240",42038,null,null,null,null,null,null,null,null,null,null,null,null,null,null,null,null,null,null,null,null,0,null,false]
[57,null,null,"2015-02-02T14:25:47.240",42038,null,null,null,null,null,null,null,null,null,null,null,null,null,null,null,null,null,null,null,null,0,null,false]
[58,null,null,"2015-02-02T14:25:47.240",42038,null,null,null,null,null,null,null,null,null,null,null,null,null,null,null,null,null,null,null,null,0,null,false]
[59,null,null,"2015-02-02T14:25:47.240",42038,null,null,null,null,null,null,null,null,null,null,null,null,null,null,null,null,null,null,null,null,0,null,false]
[60,null,null,"2015-02-02T14:25:47.240",42038,null,null,null,null,null,null,null,null,null,null,null,null,null,null,null,null,null,null,null,null,0,null,false]
[61,null,null,"2015-02-02T14:25:47.240",42038,null,null,null,null,null,null,null,null,null,null,null,null,null,null,null,null,null,null,null,null,0,null,false]
[62,null,null,"2015-02-02T14:25:47.240",42038,null,null,null,null,null,null,null,null,null,null,null,null,null,null,null,null,null,null,null,null,0,null,false]
[63,null,null,"2015-02-02T14:25:47.240",42038,null,null,null,null,null,null,null,null,null,null,null,null,null,null,null,null,null,null,null,null,0,null,false]
[64,null,null,"2015-02-02T14:25:47.240",42038,null,null,null,null,null,null,null,null,null,null,null,null,null,null,null,null,null,null,null,null,0,null,false]
[65,null,null,"2015-02-02T14:25:47.240",{"$f":"IF(C68>0,INT(C68-B68)+1,INT(D68-B68)+1)","v":42038},null,null,null,null,null,null,null,null,null,null,null,null,null,null,null,null,null,null,null,null,0,null,false]
[66,null,null,{"$f":"NOW()","v":"2015-02-02T14:25:47.240"},42038,null,null,null,null,null,null,null,null,null,null,null,null,null,null,null,null,null,null,null,null,0,null,false]
[67,null,null,"2015-02-02T14:25:47.240",42038,null,null,null,null,null,null,null,null,null,null,null,null,null,null,null,null,null,null,null,null,{"$f":"SUM(I70:Y70)","v":0},null,{"$f":"IF(AA70>0,Z70*(1-AA70))","v":false}]
[68,null,null,"2015-02-02T14:25:47.240",42038,null,null,null,null,null,null,null,null,null,null,null,null,null,null,null,null,null,null,null,null,0,null,false]
[69,null,null,"2015-02-02T14:25:47.240",42038,null,null,null,null,null,null,null,null,null,null,null,null,null,null,null,null,null,null,null,null,0,null,false]
[70,null,null,"2015-02-02T14:25:47.240",42038,null,null,null,null,null,null,null,null,null,null,null,null,null,null,null,null,null,null,null,null,0,null,false]
[71,null,null,"2015-02-02T14:25:47.240",42038,null,null,null,null,null,null,null,null,null,null,null,null,null,null,null,null,null,null,null,null,0,null,false]
[72,null,null,"2015-02-02T14:25:47.240",42038,null,null,null,null,null,null,null,null,null,null,null,null,null,null,null,null,null,null,null,null,0,null,false]
[73,null,null,"2015-02-02T14:25:47.240",42038,null,null,null,null,null,null,null,null,null,null,null,null,null,null,null,null,null,null,null,null,0,null,false]
[74,null,null,"2015-02-02T14:25:47.240",42038,null,null,null,null,null,null,null,null,null,null,null,null,null,null,null,null,null,null,null,null,0,null,false]
[75,null,null,"2015-02-02T14:25:47.240",42038,null,null,null,null,null,null,null,null,null,null,null,null,null,null,null,null,null,null,null,null,0,null,false]
[76,null,null,"2015-02-02T14:25:47.240",42038,null,null,null,null,null,null,null,null,null,null,null,null,null,null,null,null,null,null,null,null,0,null,false]
[77,null,null,"2015-02-02T14:25:47.240",42038,null,null,null,null,null,null,null,null,null,null,null,null,null,null,null,null,null,null,null,null,0,null,false]
[78,null,null,"2015-02-02T14:25:47.240",42038,null,null,null,null,null,null,null,null,null,null,null,null,null,null,null,null,null,null,null,null,0,null,false]
[79,null,null,"2015-02-02T14:25:47.240",42038,null,null,null,null,null,null,null,null,null,null,null,null,null,null,null,null,null,null,null,null,0,null,false]
[80,null,null,"2015-02-02T14:25:47.240",42038,null,null,null,null,null,null,null,null,null,null,null,null,null,null,null,null,null,null,null,null,0,null,false]
[81,null,null,"2015-02-02T14:25:47.240",42038,null,null,null,null,null,null,null,null,null,null,null,null,null,null,null,null,null,null,null,null,0,null,false]
[82,null,null,"2015-02-02T14:25:47.240",42038,null,null,null,null,null,null,null,null,null,null,null,null,null,null,null,null,null,null,null,null,0,null,false]
[83,null,null,"2015-02-02T14:25:47.240",42038,null,null,null,null,null,null,null,null,null,null,null,null,null,null,null,null,null,null,null,null,0,null,false]
[84,null,null,"2015-02-02T14:25:47.240",42038,null,null,null,null,null,null,null,null,null,null,null,null,null,null,null,null,null,null,null,null,0,null,false]
[85,null,null,"2015-02-02T14:25:47.240",42038,null,null,null,null,null,null,null,null,null,null,null,null,null,null,null,null,null,null,null,null,0,null,false]
[86,null,null,"2015-02-02T14:25:47.240",42038,null,null,null,null,null,null,null,null,null,null,null,null,null,null,null,null,null,null,null,null,0,null,false]
[87,null,null,"2015-02-02T14:25:47.240",42038,null,null,null,null,null,null,null,null,null,null,null,null,null,null,null,null,null,null,null,null,0,null,false]
[88,null,null,"2015-02-02T14:25:47.240",42038,null,null,null,null,null,null,null,null,null,null,null,null,null,null,null,null,null,null,null,null,0,null,false]
[89,null,null,"2015-02-02T14:25:47.240",42038,null,null,null,null,null,null,null,null,null,null,null,null,null,null,null,null,null,null,null,null,0,null,false]
[90,null,null,"2015-02-02T14:25:47.240",42038,null,null,null,null,null,null,null,null,null,null,null,null,null,null,null,null,null,null,null,null,0,null,false]
[91,null,null,"2015-02-02T14:25:47.240",42038,null,null,null,null,null,null,null,null,null,null,null,null,null,null,null,null,null,null,null,null,0,null,false]
[92,null,null,"2015-02-02T14:25:47.240",42038,null,null,null,null,null,null,null,null,null,null,null,null,null,null,null,null,null,null,null,null,0,null,false]
[93,null,null,"2015-02-02T14:25:47.240",42038,null,null,null,null,null,null,null,null,null,null,null,null,null,null,null,null,null,null,null,null,0,null,false]
[94,null,null,"2015-02-02T14:25:47.240",42038,null,null,null,null,null,null,null,null,null,null,null,null,null,null,null,null,null,null,null,null,0,null,false]
[95,null,null,"2015-02-02T14:25:47.240",42038,null,null,null,null,null,null,null,null,null,null,null,null,null,null,null,null,null,null,null,null,0,null,false]
[96,null,null,"2015-02-02T14:25:47.240",42038,null,null,null,null,null,null,null,null,null,null,null,null,null,null,null,null,null,null,null,null,0,null,false]
[97,null,null,"2015-02-02T14:25:47.240",42038,null,null,null,null,null,null,null,null,null,null,null,null,null,null,null,null,null,null,null,null,0,null,false]
[98,null,null,"2015-02-02T14:25:47.240",42038,null,null,null,null,null,null,null,null,null,null,null,null,null,null,null,null,null,null,null,null,0,null,false]
[99,null,null,"2015-02-02T14:25:47.240",42038,null,null,null,null,null,null,null,null,null,null,null,null,null,null,null,null,null,null,null,null,0,null,false]
[100,null,null,"2015-02-02T14:25:47.240",42038,null,null,null,null,null,null,null,null,null,null,null,null,null,null,null,null,null,null,null,null,0,null,false]
[101,null,null,"2015-02-02T14:25:47.240",42038,null,null,null,null,null,null,null,null,null,null,null,null,null,null,null,null,null,null,null,null,0,null,false]
[102,null,null,"2015-02-02T14:25:47.240",42038,null,null,null,null,null,null,null,null,null,null,null,null,null,null,null,null,null,null,null,null,0,null,false]
[103,null,null,"2015-02-02T14:25:47.240",42038,null,null,null,null,null,null,null,null,null,null,null,null,null,null,null,null,null,null,null,null,0,null,false]
[104,null,null,"2015-02-02T14:25:47.240",42038,null,null,null,null,null,null,null,null,null,null,null,null,null,null,null,null,null,null,null,null,0,null,false]
[105,null,null,"2015-02-02T14:25:47.240",42038,null,null,null,null,null,null,null,null,null,null,null,null,null,null,null,null,null,null,null,null,0,null,false]
[106,null,null,"2015-02-02T14:25:47.240",42038,null,null,null,null,null,null,null,null,null,null,null,null,null,null,null,null,null,null,null,null,0,null,false]
[107,null,null,"2015-02-02T14:25:47.240",42038,null,null,null,null,null,null,null,null,null,null,null,null,null,null,null,null,null,null,null,null,0,null,false]
[108,null,null,"2015-02-02T14:25:47.240",42038,null,null,null,null,null,null,null,null,null,null,null,null,null,null,null,null,null,null,null,null,0,null,false]
[109,null,null,"2015-02-02T14:25:47.240",42038,null,null,null,null,null,null,null,null,null,null,null,null,null,null,null,null,null,null,null,null,0,null,false]
[110,null,null,"2015-02-02T14:25:47.240",42038,null,null,null,null,null,null,null,null,null,null,null,null,null,null,null,null,null,null,null,null,0,null,false]
[111,null,null,"2015-02-02T14:25:47.240",42038,null,null,null,null,null,null,null,null,null,null,null,null,null,null,null,null,null,null,null,null,0,null,false]
[112,null,null,"2015-02-02T14:25:47.240",42038,null,null,null,null,null,null,null,null,null,null,null,null,null,null,null,null,null,null,null,null,0,null,false]
[113,null,null,"2015-02-02T14:25:47.240",42038,null,null,null,null,null,null,null,null,null,null,null,null,null,null,null,null,null,null,null,null,0,null,false]
[114,null,null,"2015-02-02T14:25:47.240",42038,null,null,null,null,null,null,null,null,null,null,null,null,null,null,null,null,null,null,null,null,0,null,false]
[115,null,null,"2015-02-02T14:25:47.240",42038,null,null,null,null,null,null,null,null,null,null,null,null,null,null,null,null,null,null,null,null,0,null,false]
[116,null,null,"2015-02-02T14:25:47.240",42038,null,null,null,null,null,null,null,null,null,null,null,null,null,null,null,null,null,null,null,null,0,null,false]
[117,null,null,"2015-02-02T14:25:47.240",42038,null,null,null,null,null,null,null,null,null,null,null,null,null,null,null,null,null,null,null,null,0,null,false]
[118,null,null,"2015-02-02T14:25:47.240",42038,null,null,null,null,null,null,null,null,null,null,null,null,null,null,null,null,null,null,null,null,0,null,false]
[119,null,null,"2015-02-02T14:25:47.240",42038,null,null,null,null,null,null,null,null,null,null,null,null,null,null,null,null,null,null,null,null,0,null,false]
[120,null,null,"2015-02-02T14:25:47.240",42038,null,null,null,null,null,null,null,null,null,null,null,null,null,null,null,null,null,null,null,null,0,null,false]
[121,null,null,"2015-02-02T14:25:47.240",42038,null,null,null,null,null,null,null,null,null,null,null,null,null,null,null,null,null,null,null,null,0,null,false]
[122,null,null,"2015-02-02T14:25:47.240",42038,null,null,null,null,null,null,null,null,null,null,null,null,null,null,null,null,null,null,null,null,0,null,false]
[123,null,null,"2015-02-02T14:25:47.240",42038,null,null,null,null,null,null,null,null,null,null,null,null,null,null,null,null,null,null,null,null,0,null,false]
[124,null,null,"2015-02-02T14:25:47.240",42038,null,null,null,null,null,null,null,null,null,null,null,null,null,null,null,null,null,null,null,null,0,null,false]
[125,null,null,"2015-02-02T14:25:47.240",42038,null,null,null,null,null,null,null,null,null,null,null,null,null,null,null,null,null,null,null,null,0,null,false]
[126,null,null,"2015-02-02T14:25:47.240",42038,null,null,null,null,null,null,null,null,null,null,null,null,null,null,null,null,null,null,null,null,0,null,false]
[127,null,null,"2015-02-02T14:25:47.240",42038,null,null,null,null,null,null,null,null,null,null,null,null,null,null,null,null,null,null,null,null,0,null,false]
[128,null,null,"2015-02-02T14:25:47.240",42038,null,null,null,null,null,null,null,null,null,null,null,null,null,null,null,null,null,null,null,null,0,null,false]
[129,null,null,"2015-02-02T14:25:47.240",{"$f":"IF(C132>0,INT(C132-B132)+1,INT(D132-B132)+1)","v":42038},null,null,null,null,null,null,null,null,null,null,null,null,null,null,null,null,null,null,null,null,0,null,false]
[130,null,null,{"$f":"NOW()","v":"2015-02-02T14:25:47.240"},42038,null,null,null,null,null,null,null,null,null,null,null,null,null,null,null,null,null,null,null,null,0,null,false]
[131,null,null,"2015-02-02T14:25:47.240",42038,null,null,null,null,null,null,null,null,null,null,null,null,null,null,null,null,null,null,null,null,{"$f":"SUM(I134:Y134)","v":0},null,{"$f":"IF(AA134>0,Z134*(1-AA134))","v":false}]
[132,null,null,"2015-02-02T14:25:47.240",42038,null,null,null,null,null,null,null,null,null,null,null,null,null,null,null,null,null,null,null,null,0,null,false]
[133,null,null,"2015-02-02T14:25:47.240",42038,null,null,null,null,null,null,null,null,null,null,null,null,null,null,null,null,null,null,null,null,0,null,false]
[134,null,null,"2015-02-02T14:25:47.240",42038,null,null,null,null,null,null,null,null,null,null,null,null,null,null,null,null,null,null,null,null,0,null,false]
[135,null,null,"2015-02-02T14:25:47.240",42038,null,null,null,null,null,null,null,null,null,null,null,null,null,null,null,null,null,null,null,null,0,null,false]
[136,null,null,"2015-02-02T14:25:47.240",42038,null,null,null,null,null,null,null,null,null,null,null,null,null,null,null,null,null,null,null,null,0,null,false]
[137,null,null,"2015-02-02T14:25:47.240",42038,null,null,null,null,null,null,null,null,null,null,null,null,null,null,null,null,null,null,null,null,0,null,false]
[138,null,null,"2015-02-02T14:25:47.240",42038,null,null,null,null,null,null,null,null,null,null,null,null,null,null,null,null,null,null,null,null,0,null,false]
[139,null,null,"2015-02-02T14:25:47.240",42038,null,null,null,null,null,null,null,null,null,null,null,null,null,null,null,null,null,null,null,null,0,null,false]
[140,null,null,"2015-02-02T14:25:47.240",42038,null,null,null,null,null,null,null,null,null,null,null,null,null,null,null,null,null,null,null,null,0,null,false]
[141,null,null,"2015-02-02T14:25:47.240",42038,null,null,null,null,null,null,null,null,null,null,null,null,null,null,null,null,null,null,null,null,0,null,false]
[142,null,null,"2015-02-02T14:25:47.240",42038,null,null,null,null,null,null,null,null,null,null,null,null,null,null,null,null,null,null,null,null,0,null,false]
[143,null,null,"2015-02-02T14:25:47.240",42038,null,null,null,null,null,null,null,null,null,null,null,null,null,null,null,null,null,null,null,null,0,null,false]
[144,null,null,"2015-02-02T14:25:47.240",42038,null,null,null,null,null,null,null,null,null,null,null,null,null,null,null,null,null,null,null,null,0,null,false]
[145,null,null,"2015-02-02T14:25:47.240",42038,null,null,null,null,null,null,null,null,null,null,null,null,null,null,null,null,null,null,null,null,0,null,false]
[146,null,null,"2015-02-02T14:25:47.240",42038,null,null,null,null,null,null,null,null,null,null,null,null,null,null,null,null,null,null,null,null,0,null,false]
[147,null,null,"2015-02-02T14:25:47.240",42038,null,null,null,null,null,null,null,null,null,null,null,null,null,null,null,null,null,null,null,null,0,null,false]
[148,null,null,"2015-02-02T14:25:47.240",42038,null,null,null,null,null,null,null,null,null,null,null,null,null,null,null,null,null,null,null,null,0,null,false]
[149,null,null,"2015-02-02T14:25:47.240",42038,null,null,null,null,null,null,null,null,null,null,null,null,null,null,null,null,null,null,null,null,0,null,false]
[150,null,null,"2015-02-02T14:25:47.240",42038,null,null,null,null,null,null,null,null,null,null,null,null,null,null,null,null,null,null,null,null,0,null,false]
[151,null,null,"2015-02-02T14:25:47.240",42038,null,null,null,null,null,null,null,null,null,null,null,null,null,null,null,null,null,null,null,null,0,null,false]
[152,null,null,"2015-02-02T14:25:47.240",42038,null,null,null,null,null,null,null,null,null,null,null,null,null,null,null,null,null,null,null,null,0,null,false]
[153,null,null,"2015-02-02T14:25:47.240",42038,null,null,null,null,null,null,null,null,null,null,null,null,null,null,null,null,null,null,null,null,0,null,false]
[154,null,null,"2015-02-02T14:25:47.240",42038,null,null,null,null,null,null,null,null,null,null,null,null,null,null,null,null,null,null,null,null,0,null,false]
[155,null,null,"2015-02-02T14:25:47.240",42038,null,null,null,null,null,null,null,null,null,null,null,null,null,null,null,null,null,null,null,null,0,null,false]
[156,null,null,"2015-02-02T14:25:47.240",42038,null,null,null,null,null,null,null,null,null,null,null,null,null,null,null,null,null,null,null,null,0,null,false]
[157,null,null,"2015-02-02T14:25:47.240",42038,null,null,null,null,null,null,null,null,null,null,null,null,null,null,null,null,null,null,null,null,0,null,false]
[158,null,null,"2015-02-02T14:25:47.240",42038,null,null,null,null,null,null,null,null,null,null,null,null,null,null,null,null,null,null,null,null,0,null,false]
[159,null,null,"2015-02-02T14:25:47.240",42038,null,null,null,null,null,null,null,null,null,null,null,null,null,null,null,null,null,null,null,null,0,null,false]
[160,null,null,"2015-02-02T14:25:47.240",42038,null,null,null,null,null,null,null,null,null,null,null,null,null,null,null,null,null,null,null,null,0,null,false]
[161,null,null,"2015-02-02T14:25:47.240",42038,null,null,null,null,null,null,null,null,null,null,null,null,null,null,null,null,null,null,null,null,0,null,false]
[162,null,null,"2015-02-02T14:25:47.240",42038,null,null,null,null,null,null,null,null,null,null,null,null,null,null,null,null,null,null,null,null,0,null,false]
[163,null,null,"2015-02-02T14:25:47.240",42038,null,null,null,null,null,null,null,null,null,null,null,null,null,null,null,null,null,null,null,null,0,null,false]
[164,null,null,"2015-02-02T14:25:47.240",42038,null,null,null,null,null,null,null,null,null,null,null,null,null,null,null,null,null,null,null,null,0,null,false]
[165,null,null,"2015-02-02T14:25:47.240",42038,null,null,null,null,null,null,null,null,null,null,null,null,null,null,null,null,null,null,null,null,0,null,false]
[166,null,null,"2015-02-02T14:25:47.240",42038,null,null,null,null,null,null,null,null,null,null,null,null,null,null,null,null,null,null,null,null,0,null,false]
[167,null,null,"2015-02-02T14:25:47.240",42038,null,null,null,null,null,null,null,null,null,null,null,null,null,null,null,null,null,null,null,null,0,null,false]
[168,null,null,"2015-02-02T14:25:47.240",42038,null,null,null,null,null,null,null,null,null,null,null,null,null,null,null,null,null,null,null,null,0,null,false]
[169,null,null,"2015-02-02T14:25:47.240",42038,null,null,null,null,null,null,null,null,null,null,null,null,null,null,null,null,null,null,null,null,0,null,false]
[170,null,null,"2015-02-02T14:25:47.240",42038,null,null,null,null,null,null,null,null,null,null,null,null,null,null,null,null,null,null,null,null,0,null,false]
[171,null,null,"2015-02-02T14:25:47.240",42038,null,null,null,null,null,null,null,null,null,null,null,null,null,null,null,null,null,null,null,null,0,null,false]
[172,null,null,"2015-02-02T14:25:47.240",42038,null,null,null,null,null,null,null,null,null,null,null,null,null,null,null,null,null,null,null,null,0,null,false]
[173,null,null,"2015-02-02T14:25:47.240",42038,null,null,null,null,null,null,null,null,null,null,null,null,null,null,null,null,null,null,null,null,0,null,false]
[174,null,null,"2015-02-02T14:25:47.240",42038,null,null,null,null,null,null,null,null,null,null,null,null,null,null,null,null,null,null,null,null,0,null,false]
[175,null,null,"2015-02-02T14:25:47.240",42038,null,null,null,null,null,null,null,null,null,null,null,null,null,null,null,null,null,null,null,null,0,null,false]
[176,null,null,"2015-02-02T14:25:47.240",42038,null,null,null,null,null,null,null,null,null,null,null,null,null,null,null,null,null,null,null,null,0,null,false]
[177,null,null,"2015-02-02T14:25:47.240",42038,null,null,null,null,null,null,null,null,null,null,null,null,null,null,null,null,null,null,null,null,0,null,false]
[178,null,null,"2015-02-02T14:25:47.240",42038,null,null,null,null,null,null,null,null,null,null,null,null,null,null,null,null,null,null,null,null,0,null,false]
[179,null,null,"2015-02-02T14:25:47.240",42038,null,null,null,null,null,null,null,null,null,null,null,null,null,null,null,null,null,null,null,null,0,null,false]
[180,null,null,"2015-02-02T14:25:47.240",42038,null,null,null,null,null,null,null,null,null,null,null,null,null,null,null,null,null,null,null,null,0,null,false]
[181,null,null,"2015-02-02T14:25:47.240",42038,null,null,null,null,null,null,null,null,null,null,null,null,null,null,null,null,null,null,null,null,0,null,false]
[182,null,null,"2015-02-02T14:25:47.240",42038,null,null,null,null,null,null,null,null,null,null,null,null,null,null,null,null,null,null,null,null,0,null,false]
[183,null,null,"2015-02-02T14:25:47.240",42038,null,null,null,null,null,null,null,null,null,null,null,null,null,null,null,null,null,null,null,null,0,null,false]
[184,null,null,"2015-02-02T14:25:47.240",42038,null,null,null,null,null,null,null,null,null,null,null,null,null,null,null,null,null,null,null,null,0,null,false]
[185,null,null,"2015-02-02T14:25:47.240",42038,null,null,null,null,null,null,null,null,null,null,null,null,null,null,null,null,null,null,null,null,0,null,false]
[186,null,null,"2015-02-02T14:25:47.240",42038,null,null,null,null,null,null,null,null,null,null,null,null,null,null,null,null,null,null,null,null,0,null,false]
[187,null,null,"2015-02-02T14:25:47.240",42038,null,null,null,null,null,null,null,null,null,null,null,null,null,null,null,null,null,null,null,null,0,null,false]
[188,null,null,"2015-02-02T14:25:47.240",42038,null,null,null,null,null,null,null,null,null,null,null,null,null,null,null,null,null,null,null,null,0,null,false]
[189,null,null,"2015-02-02T14:25:47.240",42038,null,null,null,null,null,null,null,null,null,null,null,null,null,null,null,null,null,null,null,null,0,null,false]
[190,null,null,"2015-02-02T14:25:47.240",42038,null,null,null,null,null,null,null,null,null,null,null,null,null,null,null,null,null,null,null,null,0,null,false]
[191,null,null,"2015-02-02T14:25:47.240",42038,null,null,null,null,null,null,null,null,null,null,null,null,null,null,null,null,null,null,null,null,0,null,false]
[192,null,null,"2015-02-02T14:25:47.240",42038,null,null,null,null,null,null,null,null,null,null,null,null,null,null,null,null,null,null,null,null,0,null,false]
[193,null,null,"2015-02-02T14:25:47.240",{"$f":"IF(C196>0,INT(C196-B196)+1,INT(D196-B196)+1)","v":42038},null,null,null,null,null,null,null,null,null,null,null,null,null,null,null,null,null,null,null,null,0,null,false]
[194,null,null,{"$f":"NOW()","v":"2015-02-02T14:25:47.240"},42038,null,null,null,null,null,null,null,null,null,null,null,null,null,null,null,null,null,null,null,null,0,null,false]
[195,null,null,"2015-02-02T14:25:47.240",42038,null,null,null,null,null,null,null,null,null,null,null,null,null,null,null,null,null,null,null,null,{"$f":"SUM(I198:Y198)","v":0},null,{"$f":"IF(AA198>0,Z198*(1-AA198))","v":false}]
[196,null,null,"2015-02-02T14:25:47.240",42038,null,null,null,null,null,null,null,null,null,null,null,null,null,null,null,null,null,null,null,null,0,null,false]
[197,null,null,"2015-02-02T14:25:47.240",42038,null,null,null,null,null,null,null,null,null,null,null,null,null,null,null,null,null,null,null,null,0,null,false]
[198,null,null,"2015-02-02T14:25:47.240",42038,null,null,null,null,null,null,null,null,null,null,null,null,null,null,null,null,null,null,null,null,0,null,false]
[199,null,null,"2015-02-02T14:25:47.240",42038,null,null,null,null,null,null,null,null,null,null,null,null,null,null,null,null,null,null,null,null,0,null,false]
[200,null,null,"2015-02-02T14:25:47.240",42038,null,null,null,null,null,null,null,null,null,null,null,null,null,null,null,null,null,null,null,null,0,null,false]
[201,null,null,"2015-02-02T14:25:47.240",42038,null,null,null,null,null,null,null,null,null,null,null,null,null,null,null,null,null,null,null,null,0,null,false]
[202,null,null,"2015-02-02T14:25:47.240",42038,null,null,null,null,null,null,null,null,null,null,null,null,null,null,null,null,null,null,null,null,0,null,false]
[203,null,null,"2015-02-02T14:25:47.240",42038,null,null,null,null,null,null,null,null,null,null,null,null,null,null,null,null,null,null,null,null,0,null,false]
[204,null,null,"2015-02-02T14:25:47.240",42038,null,null,null,null,null,null,null,null,null,null,null,null,null,null,null,null,null,null,null,null,0,null,false]
[205,null,null,"2015-02-02T14:25:47.240",42038,null,null,null,null,null,null,null,null,null,null,null,null,null,null,null,null,null,null,null,null,0,null,false]
[206,null,null,"2015-02-02T14:25:47.240",42038,null,null,null,null,null,null,null,null,null,null,null,null,null,null,null,null,null,null,null,null,0,null,false]
[207,null,null,"2015-02-02T14:25:47.240",42038,null,null,null,null,null,null,null,null,null,null,null,null,null,null,null,null,null,null,null,null,0,null,false]
[208,null,null,"2015-02-02T14:25:47.240",42038,null,null,null,null,null,null,null,null,null,null,null,null,null,null,null,null,null,null,null,null,0,null,false]
[209,null,null,"2015-02-02T14:25:47.240",42038,null,null,null,null,null,null,null,null,null,null,null,null,null,null,null,null,null,null,null,null,0,null,false]
[210,null,null,"2015-02-02T14:25:47.240",42038,null,null,null,null,null,null,null,null,null,null,null,null,null,null,null,null,null,null,null,null,0,null,false]
[211,null,null,"2015-02-02T14:25:47.240",42038,null,null,null,null,null,null,null,null,null,null,null,null,null,null,null,null,null,null,null,null,0,null,false]
[212,null,null,"2015-02-02T14:25:47.240",42038,null,null,null,null,null,null,null,null,null,null,null,null,null,null,null,null,null,null,null,null,0,null,false]
[213,null,null,"2015-02-02T14:25:47.240",42038,null,null,null,null,null,null,null,null,null,null,null,null,null,null,null,null,null,null,null,null,0,null,false]
[214,null,null,"2015-02-02T14:25:47.240",42038,null,null,null,null,null,null,null,null,null,null,null,null,null,null,null,null,null,null,null,null,0,null,false]
[215,null,null,"2015-02-02T14:25:47.240",42038,null,null,null,null,null,null,null,null,null,null,null,null,null,null,null,null,null,null,null,null,0,null,false]
[216,null,null,"2015-02-02T14:25:47.240",42038,null,null,null,null,null,null,null,null,null,null,null,null,null,null,null,null,null,null,null,null,0,null,false]
[217,null,null,"2015-02-02T14:25:47.240",42038,null,null,null,null,null,null,null,null,null,null,null,null,null,null,null,null,null,null,null,null,0,null,false]
[218,null,null,"2015-02-02T14:25:47.240",42038,null,null,null,null,null,null,null,null,null,null,null,null,null,null,null,null,null,null,null,null,0,null,false]
[219,null,null,"2015-02-02T14:25:47.240",42038,null,null,null,null,null,null,null,null,null,null,null,null,null,null,null,null,null,null,null,null,0,null,false]
[220,null,null,"2015-02-02T14:25:47.240",42038,null,null,null,null,null,null,null,null,null,null,null,null,null,null,null,null,null,null,null,null,0,null,false]
[221,null,null,"2015-02-02T14:25:47.240",42038,null,null,null,null,null,null,null,null,null,null,null,null,null,null,null,null,null,null,null,null,0,null,false]
[222,null,null,"2015-02-02T14:25:47.240",42038,null,null,null,null,null,null,null,null,null,null,null,null,null,null,null,null,null,null,null,null,0,null,false]
[223,null,null,"2015-02-02T14:25:47.240",42038,null,null,null,null,null,null,null,null,null,null,null,null,null,null,null,null,null,null,null,null,0,null,false]
[224,null,null,"2015-02-02T14:25:47.240",42038,null,null,null,null,null,null,null,null,null,null,null,null,null,null,null,null,null,null,null,null,0,null,false]
[225,null,null,"2015-02-02T14:25:47.240",42038,null,null,null,null,null,null,null,null,null,null,null,null,null,null,null,null,null,null,null,null,0,null,false]
[226,null,null,"2015-02-02T14:25:47.240",42038,null,null,null,null,null,null,null,null,null,null,null,null,null,null,null,null,null,null,null,null,0,null,false]
[227,null,null,"2015-02-02T14:25:47.240",42038,null,null,null,null,null,null,null,null,null,null,null,null,null,null,null,null,null,null,null,null,0,null,false]
[228,null,null,"2015-02-02T14:25:47.240",42038,null,null,null,null,null,null,null,null,null,null,null,null,null,null,null,null,null,null,null,null,0,null,false]
[229,null,null,"2015-02-02T14:25:47.240",42038,null,null,null,null,null,null,null,null,null,null,null,null,null,null,null,null,null,null,null,null,0,null,false]
[230,null,null,"2015-02-02T14:25:47.240",42038,null,null,null,null,null,null,null,null,null,null,null,null,null,null,null,null,null,null,null,null,0,null,false]
[231,null,null,"2015-02-02T14:25:47.240",42038,null,null,null,null,null,null,null,null,null,null,null,null,null,null,null,null,null,null,null,null,0,null,false]
[232,null,null,"2015-02-02T14:25:47.240",42038,null,null,null,null,null,null,null,null,null,null,null,null,null,null,null,null,null,null,null,null,0,null,false]
[233,null,null,"2015-02-02T14:25:47.240",42038,null,null,null,null,null,null,null,null,null,null,null,null,null,null,null,null,null,null,null,null,0,null,false]
[234,null,null,"2015-02-02T14:25:47.240",42038,null,null,null,null,null,null,null,null,null,null,null,null,null,null,null,null,null,null,null,null,0,null,false]
[235,null,null,"2015-02-02T14:25:47.240",42038,null,null,null,null,null,null,null,null,null,null,null,null,null,null,null,null,null,null,null,null,0,null,false]
[236,null,null,"2015-02-02T14:25:47.240",42038,null,null,null,null,null,null,null,null,null,null,null,null,null,null,null,null,null,null,null,null,0,null,false]
[237,null,null,"2015-02-02T14:25:47.240",42038,null,null,null,null,null,null,null,null,null,null,null,null,null,null,null,null,null,null,null,null,0,null,false]
[238,null,null,"2015-02-02T14:25:47.240",42038,null,null,null,null,null,null,null,null,null,null,null,null,null,null,null,null,null,null,null,null,0,null,false]
[239,null,null,"2015-02-02T14:25:47.240",42038,null,null,null,null,null,null,null,null,null,null,null,null,null,null,null,null,null,null,null,null,0,null,false]
[240,null,null,"2015-02-02T14:25:47.240",42038,null,null,null,null,null,null,null,null,null,null,null,null,null,null,null,null,null,null,null,null,0,null,false]
[241,null,null,"2015-02-02T14:25:47.240",42038,null,null,null,null,null,null,null,null,null,null,null,null,null,null,null,null,null,null,null,null,0,null,false]
[242,null,null,"2015-02-02T14:25:47.240",42038,null,null,null,null,null,null,null,null,null,null,null,null,null,null,null,null,null,null,null,null,0,null,false]
[243,null,null,"2015-02-02T14:25:47.240",42038,null,null,null,null,null,null,null,null,null,null,null,null,null,null,null,null,null,null,null,null,0,null,false]
[244,null,null,"2015-02-02T14:25:47.240",42038,null,null,null,null,null,null,null,null,null,null,null,null,null,null,null,null,null,null,null,null,0,null,false]
[245,null,null,"2015-02-02T14:25:47.240",42038,null,null,null,null,null,null,null,null,null,null,null,null,null,null,null,null,null,null,null,null,0,null,false]
[246,null,null,"2015-02-02T14:25:47.240",42038,null,null,null,null,null,null,null,null,null,null,null,null,null,null,null,null,null,null,null,null,0,null,false]
[247,null,null,"2015-02-02T14:25:47.240",42038,null,null,null,null,null,null,null,null,null,null,null,null,null,null,null,null,null,null,null,null,0,null,false]
[248,null,null,"2015-02-02T14:25:47.240",42038,null,null,null,null,null,null,null,null,null,null,null,null,null,null,null,null,null,null,null,null,0,null,false]
[249,null,null,"2015-02-02T14:25:47.240",42038,null,null,null,null,null,null,null,null,null,null,null,null,null,null,null,null,null,null,null,null,0,null,false]
[250,null,null,"2015-02-02T14:25:47.240",42038,null,null,null,null,null,null,null,null,null,null,null,null,null,null,null,null,null,null,null,null,0,null,false]
[251,null,null,"2015-02-02T14:25:47.240",42038,null,null,null,null,null,null,null,null,null,null,null,null,null,null,null,null,null,null,null,null,0,null,false]
[252,null,null,"2015-02-02T14:25:47.240",42038,null,null,null,null,null,null,null,null,null,null,null,null,null,null,null,null,null,null,null,null,0,null,false]
[253,null,null,"2015-02-02T14:25:47.240",42038,null,null,null,null,null,null,null,null,null,null,null,null,null,null,null,null,null,null,null,null,0,null,false]
[254,null,null,"2015-02-02T14:25:47.240",42038,null,null,null,null,null,null,null,null,null,null,null,null,null,null,null,null,null,null,null,null,0,null,false]
[255,null,null,"2015-02-02T14:25:47.240",42038,null,null,null,null,null,null,null,null,null,null,null,null,null,null,null,null,null,null,null,null,0,null,false]
[256,null,null,"2015-02-02T14:25:47.240",42038,null,null,null,null,null,null,null,null,null,null,null,null,null,null,null,null,null,null,null,null,0,null,false]
[257,null,null,"2015-02-02T14:25:47.240",{"$f":"IF(C260>0,INT(C260-B260)+1,INT(D260-B260)+1)","v":42038},null,null,null,null,null,null,null,null,null,null,null,null,null,null,null,null,null,null,null,null,0,null,false]
[258,null,null,{"$f":"NOW()","v":"2015-02-02T14:25:47.240"},42038,null,null,null,null,null,null,null,null,null,null,null,null,null,null,null,null,null,null,null,null,0,null,false]
[259,null,null,"2015-02-02T14:25:47.240",42038,null,null,null,null,null,null,null,null,null,null,null,null,null,null,null,null,null,null,null,null,{"$f":"SUM(I262:Y262)","v":0},null,{"$f":"IF(AA262>0,Z262*(1-AA262))","v":false}]
[260,null,null,"2015-02-02T14:25:47.240",42038,null,null,null,null,null,null,null,null,null,null,null,null,null,null,null,null,null,null,null,null,0,null,false]
[261,null,null,"2015-02-02T14:25:47.240",42038,null,null,null,null,null,null,null,null,null,null,null,null,null,null,null,null,null,null,null,null,0,null,false]
[262,null,null,"2015-02-02T14:25:47.240",42038,null,null,null,null,null,null,null,null,null,null,null,null,null,null,null,null,null,null,null,null,0,null,false]
[263,null,null,"2015-02-02T14:25:47.240",42038,null,null,null,null,null,null,null,null,null,null,null,null,null,null,null,null,null,null,null,null,0,null,false]
[264,null,null,"2015-02-02T14:25:47.240",42038,null,null,null,null,null,null,null,null,null,null,null,null,null,null,null,null,null,null,null,null,0,null,false]
[265,null,null,"2015-02-02T14:25:47.240",42038,null,null,null,null,null,null,null,null,null,null,null,null,null,null,null,null,null,null,null,null,0,null,false]
[266,null,null,"2015-02-02T14:25:47.240",42038,null,null,null,null,null,null,null,null,null,null,null,null,null,null,null,null,null,null,null,null,0,null,false]
[267,null,null,"2015-02-02T14:25:47.240",42038,null,null,null,null,null,null,null,null,null,null,null,null,null,null,null,null,null,null,null,null,0,null,false]
[268,null,null,"2015-02-02T14:25:47.240",42038,null,null,null,null,null,null,null,null,null,null,null,null,null,null,null,null,null,null,null,null,0,null,false]
[269,null,null,"2015-02-02T14:25:47.240",42038,null,null,null,null,null,null,null,null,null,null,null,null,null,null,null,null,null,null,null,null,0,null,false]
[270,null,null,"2015-02-02T14:25:47.240",42038,null,null,null,null,null,null,null,null,null,null,null,null,null,null,null,null,null,null,null,null,0,null,false]
[271,null,null,"2015-02-02T14:25:47.240",42038,null,null,null,null,null,null,null,null,null,null,null,null,null,null,null,null,null,null,null,null,0,null,false]
[272,null,null,"2015-02-02T14:25:47.240",42038,null,null,null,null,null,null,null,null,null,null,null,null,null,null,null,null,null,null,null,null,0,null,false]
[273,null,null,"2015-02-02T14:25:47.240",42038,null,null,null,null,null,null,null,null,null,null,null,null,null,null,null,null,null,null,null,null,0,null,false]
[274,null,null,"2015-02-02T14:25:47.240",42038,null,null,null,null,null,null,null,null,null,null,null,null,null,null,null,null,null,null,null,null,0,null,false]
[275,null,null,"2015-02-02T14:25:47.240",42038,null,null,null,null,null,null,null,null,null,null,null,null,null,null,null,null,null,null,null,null,0,null,false]
[276,null,null,"2015-02-02T14:25:47.240",42038,null,null,null,null,null,null,null,null,null,null,null,null,null,null,null,null,null,null,null,null,0,null,false]
[277,null,null,"2015-02-02T14:25:47.240",42038,null,null,null,null,null,null,null,null,null,null,null,null,null,null,null,null,null,null,null,null,0,null,false]
[278,null,null,"2015-02-02T14:25:47.240",42038,null,null,null,null,null,null,null,null,null,null,null,null,null,null,null,null,null,null,null,null,0,null,false]
[279,null,null,"2015-02-02T14:25:47.240",42038,null,null,null,null,null,null,null,null,null,null,null,null,null,null,null,null,null,null,null,null,0,null,false]
[280,null,null,"2015-02-02T14:25:47.240",42038,null,null,null,null,null,null,null,null,null,null,null,null,null,null,null,null,null,null,null,null,0,null,false]
[281,null,null,"2015-02-02T14:25:47.240",42038,null,null,null,null,null,null,null,null,null,null,null,null,null,null,null,null,null,null,null,null,0,null,false]
[282,null,null,"2015-02-02T14:25:47.240",42038,null,null,null,null,null,null,null,null,null,null,null,null,null,null,null,null,null,null,null,null,0,null,false]
[283,null,null,"2015-02-02T14:25:47.240",42038,null,null,null,null,null,null,null,null,null,null,null,null,null,null,null,null,null,null,null,null,0,null,false]
[284,null,null,"2015-02-02T14:25:47.240",42038,null,null,null,null,null,null,null,null,null,null,null,null,null,null,null,null,null,null,null,null,0,null,false]
[285,null,null,"2015-02-02T14:25:47.240",42038,null,null,null,null,null,null,null,null,null,null,null,null,null,null,null,null,null,null,null,null,0,null,false]
[286,null,null,"2015-02-02T14:25:47.240",42038,null,null,null,null,null,null,null,null,null,null,null,null,null,null,null,null,null,null,null,null,0,null,false]
[287,null,null,"2015-02-02T14:25:47.240",42038,null,null,null,null,null,null,null,null,null,null,null,null,null,null,null,null,null,null,null,null,0,null,false]
[288,null,null,"2015-02-02T14:25:47.240",42038,null,null,null,null,null,null,null,null,null,null,null,null,null,null,null,null,null,null,null,null,0,null,false]
[289,null,null,"2015-02-02T14:25:47.240",42038,null,null,null,null,null,null,null,null,null,null,null,null,null,null,null,null,null,null,null,null,0,null,false]
[290,null,null,"2015-02-02T14:25:47.240",42038,null,null,null,null,null,null,null,null,null,null,null,null,null,null,null,null,null,null,null,null,0,null,false]
[291,null,null,"2015-02-02T14:25:47.240",42038,null,null,null,null,null,null,null,null,null,null,null,null,null,null,null,null,null,null,null,null,0,null,false]
[292,null,null,"2015-02-02T14:25:47.240",42038,null,null,null,null,null,null,null,null,null,null,null,null,null,null,null,null,null,null,null,null,0,null,false]
[293,null,null,"2015-02-02T14:25:47.240",42038,null,null,null,null,null,null,null,null,null,null,null,null,null,null,null,null,null,null,null,null,0,null,false]
[294,null,null,"2015-02-02T14:25:47.240",42038,null,null,null,null,null,null,null,null,null,null,null,null,null,null,null,null,null,null,null,null,0,null,false]
[295,null,null,"2015-02-02T14:25:47.240",42038,null,null,null,null,null,null,null,null,null,null,null,null,null,null,null,null,null,null,null,null,0,null,false]
[296,null,null,"2015-02-02T14:25:47.240",42038,null,null,null,null,null,null,null,null,null,null,null,null,null,null,null,null,null,null,null,null,0,null,false]
[297,null,null,"2015-02-02T14:25:47.240",42038,null,null,null,null,null,null,null,null,null,null,null,null,null,null,null,null,null,null,null,null,0,null,false]
[298,null,null,"2015-02-02T14:25:47.240",42038,null,null,null,null,null,null,null,null,null,null,null,null,null,null,null,null,null,null,null,null,0,null,false]
[299,null,null,"2015-02-02T14:25:47.240",42038,null,null,null,null,null,null,null,null,null,null,null,null,null,null,null,null,null,null,null,null,0,null,false]
[null,null,null,null,null,null,null,null,null,{"$f":"SUM(J4:J302)","v":0},{"$f":"SUM(K4:K302)","v":0},0,0,0,0,0,0,{"$error":"#REF!"},0,0,0,0,{"$f":"SUM(W4:W302)","v":0},{"$f":"SUM(X4:X302)","v":0},{"$f":"SUM(Y4:Y302)","v":0},0]

{"sheet":"отчет","index":1,"n_rows":303,"n_cols":28,"rows_kept":303,"cut":false,"hidden":false,"merged":[[1,19,2,19],[1,20,2,20],[1,21,2,21],[1,13,2,13],[1,14,2,14],[1,15,2,15],[1,16,2,16],[1,17,2,17],[1,18,2,18],[0,22,2,22],[0,23,2,23],[0,24,2,24],[0,25,2,25],[0,26,2,26],[0,27,2,27],[0,6,2,6],[0,7,2,7],[0,8,0,9],[0,10,0,11],[0,12,2,12],[0,13,0,21],[1,8,2,8],[1,9,2,9],[1,10,2,10],[1,11,2,11],[0,0,2,0],[0,1,2,1],[0,2,2,2],[0,3,2,3],[0,4,2,4],[0,5,2,5]]}
["№","Дата прибытия","Дата убытия (ручн.)","Текущая дата (автом.)","Срок хранения","Найменование товара","Кол-во товара","Клиент","описание",null,"описание",null,"описание","описание",null,null,null,null,null,null,null,null,"описание","описание","описание","описание","описание","описание"]
[null,null,null,null,null,null,null,null,"описание","описание","описание","описание",null,"описание","описание","описание","описание","описание","описание","описание","описание","описание"]
[]
[]
[]
[]
[]
[]
[]
[]
[]
[]
[]
[]
[]
[]
[]
[]
[]
[]
[]
[]
[]
[]
[]
[]
[]
[]
[]
[]
[]
[]
[]
[]
[]
[]
[]
[]
[]
[]
[]
[]
[]
[]
[]
[]
[]
[]
[]
[]
[]
[]
[]
[]
[]
[]
[]
[]
[]
[]
[]
[]
[]
[]
[]
[]
[]
[]
[]
[]
[]
[]
[]
[]
[]
[]
[]
[]
[]
[]
[]
[]
[]
[]
[]
[]
[]
[]
[]
[]
[]
[]
[]
[]
[]
[]
[]
[]
[]
[]
[]
[]
[]
[]
[]
[]
[]
[]
[]
[]
[]
[]
[]
[]
[]
[]
[]
[]
[]
[]
[]
[]
[]
[]
[]
[]
[]
[]
[]
[]
[]
[]
[]
[]
[]
[]
[]
[]
[]
[]
[]
[]
[]
[]
[]
[]
[]
[]
[]
[]
[]
[]
[]
[]
[]
[]
[]
[]
[]
[]
[]
[]
[]
[]
[]
[]
[]
[]
[]
[]
[]
[]
[]
[]
[]
[]
[]
[]
[]
[]
[]
[]
[]
[]
[]
[]
[]
[]
[]
[]
[]
[]
[]
[]
[]
[]
[]
[]
[]
[]
[]
[]
[]
[]
[]
[]
[]
[]
[]
[]
[]
[]
[]
[]
[]
[]
[]
[]
[]
[]
[]
[]
[]
[]
[]
[]
[]
[]
[]
[]
[]
[]
[]
[]
[]
[]
[]
[]
[]
[]
[]
[]
[]
[]
[]
[]
[]
[]
[]
[]
[]
[]
[]
[]
[]
[]
[]
[]
[]
[]
[]
[]
[]
[]
[]
[]
[]
[]
[]
[]
[]
[]
[]
[]
[]
[]
[]
[]
[]
[]
[]
[]
[]
[]
[]
[]
[]
[]
[]
[]
[]
[]
[]
[]
[]
[]
[]
[]
[]
[]
[]
[299,null,null,{"$f":"NOW()","v":"2015-02-02T14:25:47.240"},{"$f":"IF(C302>0,INT(C302-B302)+1,INT(D302-B302)+1)","v":42038},null,null,null,null,null,null,null,null,null,null,null,null,null,null,null,null,null,null,null,null,{"$f":"SUM(I302:Y302)","v":0},null,{"$f":"IF(AA302>0,Z302*(1-AA302))","v":false}]
[null,null,null,null,null,null,null,null,null,{"$f":"SUM(J4:J302)","v":0},{"$f":"SUM(K4:K302)","v":0},0,0,0,0,0,0,0,0,0,0,0,0,0,0,0]